fUST/lending_fUST_20240122
["ID","MTS","AMOUNT","RATE_DAILY","PERIOD"]
[312436654,1705875040054,-920.75,0.00027397,2]
[312436655,1705875040064,-9825.92,0.00027397,2]
[312436656,1705875040073,-947.8,0.00027397,2]
[312436657,1705875040082,-500.0,0.00027397,2]
[312436658,1705875040091,-500.0,0.00027397,2]
[312436660,1705875040103,-500.0,0.00027397,2]
[312436661,1705875040112,-500.0,0.00027397,2]
[312436662,1705875040121,-343.50194126,0.00027397,2]
[312436663,1705875040304,-155.0,0.00027397,2]
[312436664,1705875040315,-6478.38,0.00027397,2]
[312436665,1705875040324,-756.13,0.00027397,2]
[312436666,1705875040333,-642.08,0.00027397,2]
[312436667,1705875040343,-500.0,0.00027397,2]
[312436668,1705875040352,-1908.97,0.00027397,2]
[312436669,1705875040363,-500.0,0.00027397,2]
[312436670,1705875040373,-500.0,0.00027397,2]
[312436671,1705875040383,-500.0,0.00027397,2]
[312436672,1705875040393,-500.0,0.00027397,2]
[312436673,1705875040402,-734.43,0.00027397,2]
[312436674,1705875040411,-5445.13,0.00027397,2]
[312436675,1705875040421,-500.0,0.00027397,2]
[312436676,1705875040430,-2186.16,0.00027397,2]
[312436677,1705875040444,-827.82,0.00027397,2]
[312436678,1705875040453,-1323.56,0.00027397,2]
[312436679,1705875040463,-500.0,0.00027397,2]
[312436680,1705875040475,-3920.34,0.00027397,2]
[312436681,1705875040485,-500.0,0.00027397,2]
[312436682,1705875040495,-1444.61,0.00027397,2]
[312436683,1705875040505,-500.0,0.00027397,2]
[312436684,1705875040518,-1026.01,0.00027397,2]
[312436685,1705875040528,-500.0,0.00027397,2]
[312436686,1705875040539,-5038.73,0.00027397,2]
[312436687,1705875040549,-234.05683702,0.00027397,2]
[312436688,1705875040558,-500.0,0.00027397,2]
[312436689,1705875040567,-500.0,0.00027397,2]
[312436690,1705875040577,-430.98156131,0.00027397,2]
[312436691,1705875040588,-500.0,0.00027397,2]
[312436692,1705875040597,-500.0,0.00027397,2]
[312436693,1705875040606,-1159.53,0.00027397,2]
[312436694,1705875040616,-500.0,0.00027397,2]
[312436695,1705875040625,-500.0,0.00027397,2]
[312436696,1705875040635,-1784.27,0.00027397,2]
[312436697,1705875040644,-500.0,0.00027397,2]
[312436698,1705875040654,-586.54466235,0.00027397,2]
[312436699,1705875040664,-500.0,0.00027397,2]
[312436700,1705875040675,-768.72,0.00027397,2]
[312436701,1705875040686,-500.0,0.00027397,2]
[312436702,1705875040697,-400.0,0.00027397,2]
[312436703,1705875040706,-620.07108644,0.00027445,2]
[312436704,1705875040715,-42690.78534537,0.000275,2]
[312436705,1705875040725,-1607.4130733,0.000275,2]
[312436706,1705875040734,-594.71433165,0.00027671,2]
[312436707,1705875040743,-500.0,0.00027671,2]
[312436708,1705875040752,-500.0,0.00027671,2]
[312436709,1705875040761,-500.0,0.00027671,2]
[312436710,1705875040770,-500.0,0.00027671,2]
[312436711,1705875040780,-500.0,0.00027671,2]
[312436713,1705875040790,-662.86,0.00027671,2]
[312436715,1705875040800,-500.0,0.00027671,2]
[312436716,1705875040809,-500.0,0.00027671,2]
[312436717,1705875040818,-500.0,0.00027671,2]
[312436718,1705875040827,-500.0,0.00027671,2]
[312436719,1705875040836,-500.0,0.00027671,2]
[312436720,1705875040846,-490.94658652,0.00027671,2]
[312436721,1705875040855,-605.55,0.00027671,2]
[312436722,1705875040864,-500.0,0.00027671,2]
[312436723,1705875040873,-500.0,0.00027671,2]
[312436724,1705875040882,-503.44840265,0.00027671,2]
[312436725,1705875040892,-500.0,0.00027671,2]
[312436726,1705875040901,-686.45,0.00027671,2]
[312436727,1705875040910,-500.0,0.00027671,2]
[312436728,1705875040920,-500.0,0.00027671,2]
[312436729,1705875040929,-500.0,0.00027671,2]
[312436730,1705875040938,-500.0,0.00027671,2]
[312436731,1705875040947,-500.0,0.00027671,2]
[312436732,1705875040957,-500.0,0.00027671,2]
[312436733,1705875040966,-500.0,0.00027671,2]
[312436734,1705875040977,-219.39829432,0.00027671,2]
[312436735,1705875040986,-500.0,0.00027671,2]
[312436736,1705875040996,-536.42536523,0.00027671,2]
[312436737,1705875041005,-500.0,0.00027671,2]
[312436738,1705875041015,-500.0,0.00027671,2]
[312436739,1705875041024,-500.0,0.00027671,2]
[312436740,1705875041034,-500.0,0.00027671,2]
[312436741,1705875041044,-500.0,0.00027671,2]
[312436742,1705875041053,-500.0,0.00027671,2]
[312436743,1705875041063,-635.3,0.00027671,2]
[312436744,1705875041074,-500.0,0.00027671,2]
[312436745,1705875041084,-500.0,0.00027671,2]
[312436746,1705875041094,-500.0,0.00027671,2]
[312436747,1705875041104,-500.0,0.00027671,2]
[312436748,1705875041113,-500.0,0.00027671,2]
[312436749,1705875041122,-500.0,0.00027671,2]
[312436750,1705875041131,-500.0,0.00027671,2]
[312436751,1705875041140,-500.0,0.00027671,2]
[312436752,1705875041149,-500.0,0.00027671,2]
[312436753,1705875041158,-590.58,0.00027671,2]
[312436754,1705875041167,-525.10428481,0.00027671,2]
[312436755,1705875041176,-500.0,0.00027671,2]
[312436756,1705875041185,-500.0,0.00027671,2]
[312436757,1705875041194,-500.0,0.00027671,2]
[312436758,1705875041205,-500.0,0.00027671,2]
[312436760,1705875041214,-500.0,0.00027671,2]
[312436761,1705875041223,-380.77806428,0.00027671,2]
[312436762,1705875041233,-500.0,0.00027671,2]
[312436763,1705875041244,-1000.0,0.00027671,2]
[312436764,1705875041255,-740.44,0.00027671,2]
[312436765,1705875041265,-500.0,0.00027671,2]
[312436766,1705875041276,-500.0,0.00027671,2]
[312436767,1705875041285,-500.0,0.00027671,2]
[312436768,1705875041294,-500.0,0.00027671,2]
[312436769,1705875041303,-470.87321249,0.00027671,2]
[312436770,1705875041312,-1359.06,0.00027671,2]
[312436771,1705875041321,-500.0,0.00027671,2]
[312436772,1705875041330,-500.0,0.00027671,2]
[312436773,1705875041339,-500.0,0.00027671,2]
[312436774,1705875041349,-500.0,0.00027671,2]
[312436775,1705875041358,-500.0,0.00027671,2]
[312436776,1705875041368,-500.0,0.00027671,2]
[312436777,1705875041378,-500.0,0.00027671,2]
[312436778,1705875041389,-500.0,0.00027671,2]
[312436779,1705875041398,-500.0,0.00027671,2]
[312436780,1705875041407,-500.0,0.00027671,2]
[312436781,1705875041416,-500.0,0.00027671,2]
[312436782,1705875041425,-500.0,0.00027671,2]
[312436783,1705875041435,-821.56,0.00027671,2]
[312436784,1705875041445,-500.0,0.00027671,2]
[312436785,1705875041455,-500.0,0.00027671,2]
[312436786,1705875041465,-500.0,0.00027671,2]
[312436787,1705875041474,-500.0,0.00027671,2]
[312436788,1705875041484,-500.0,0.00027671,2]
[312436789,1705875041494,-500.1,0.00027671,2]
[312436790,1705875041506,-500.0,0.00027671,2]
[312436791,1705875041519,-500.0,0.00027671,2]
[312436792,1705875041528,-500.0,0.00027671,2]
[312436793,1705875041538,-523.61,0.00027671,2]
[312436794,1705875041547,-647.86,0.00027671,2]
[312436795,1705875041557,-500.0,0.00027671,2]
[312436796,1705875041567,-500.0,0.00027671,2]
[312436797,1705875041578,-1504.25,0.00027671,2]
[312436798,1705875041590,-3411.86,0.00027671,2]
[312436799,1705875041601,-1227.59,0.00027671,2]
[312436800,1705875041610,-14427.51,0.00027671,2]
[312436801,1705875041620,-500.0,0.00027671,2]
[312436802,1705875041631,-715.42,0.00027671,2]
[312436803,1705875041641,-500.0,0.00027671,2]
[312436804,1705875041652,-920.75,0.00027671,2]
[312436805,1705875041662,-1332.28,0.00027671,2]
[312436806,1705875041671,-9825.92,0.00027671,2]
[312436807,1705875041682,-947.8,0.00027671,2]
[312436808,1705875041693,-500.0,0.00027671,2]
[312436809,1705875041702,-6478.38,0.00027671,2]
[312436810,1705875041711,-756.13,0.00027671,2]
[312436811,1705875041720,-642.08,0.00027671,2]
[312436812,1705875041729,-1908.97,0.00027671,2]
[312436813,1705875041738,-500.0,0.00027671,2]
[312436814,1705875041749,-734.43,0.00027671,2]
[312436815,1705875041758,-5445.13,0.00027671,2]
[312436816,1705875041767,-500.0,0.00027671,2]
[312436817,1705875041778,-2186.16,0.00027671,2]
[312436818,1705875041787,-827.82,0.00027671,2]
[312436819,1705875041797,-1323.56,0.00027671,2]
[312436820,1705875041807,-500.0,0.00027671,2]
[312436821,1705875041817,-3920.34,0.00027671,2]
[312436822,1705875041826,-1444.61,0.00027671,2]
[312436823,1705875041836,-1026.01,0.00027671,2]
[312436824,1705875041845,-500.0,0.00027671,2]
[312436825,1705875041855,-5038.73,0.00027671,2]
[312436826,1705875041865,-500.0,0.00027671,2]
[312436827,1705875041874,-500.0,0.00027671,2]
[312436828,1705875041884,-1159.53,0.00027671,2]
[312436829,1705875041892,-500.0,0.00027671,2]
[312436830,1705875041902,-507.59096993,0.00027671,2]
[312436831,1705875041911,-1784.27,0.00027671,2]
[312436832,1705875041920,-158.7612329,0.00027671,2]
[312436833,1705875041929,-768.72,0.00027671,2]
[312436834,1705875041938,-500.0,0.00027671,2]
[312436835,1705875041947,-9118.80664487,0.0002775,4]
[312436836,1705875041957,-10183.08000588,0.00027808,3]
[312436837,1705875041966,-2238.6705337,0.00027808,3]
[312436838,1705875041976,-19483.6812696,0.00027809,5]
[312436839,1705875041985,-151.0,0.00027809,2]
[312436840,1705875041994,-3283.27577974,0.0002781,4]
[312436841,1705875042003,-4752.62806299,0.00027812,5]
[312436842,1705875042220,-497.46272166,0.00021449,2]
[312436843,1705875042229,-263.1680597,0.00025132,2]
[312436844,1705875042239,-500.0,0.00027397,2]
[312436845,1705875042248,-593.93,0.00027397,2]
[312436846,1705875042257,-500.0,0.00027671,2]
[312436847,1705875042266,-593.93,0.00027671,2]
[312436848,1705875042276,-247.37193701,0.00027812,5]
[312436849,1705875042285,-151.0,0.00027899,2]
[312436850,1705875042294,-151.0,0.00027899,2]
[312436851,1705875042304,-151.0,0.00027899,2]
[312436852,1705875042313,-151.0,0.00027899,2]
[312436853,1705875042322,-151.0,0.00027899,2]
[312436854,1705875042333,-151.0,0.00027899,2]
[312436855,1705875042343,-2542.88871309,0.00027899,2]
[312436879,1705875043088,-500.0,0.00027397,2]
[312436880,1705875043099,-2693.8437246,0.00027808,5]
[312436914,1705875046795,-500.0,0.00027397,2]
[312436915,1705875046804,-743.62755051,0.00027807,2]
[312436954,1705876232160,-154.75239617,0.00021448,4]
[312436955,1705876232170,-1114.30379801,0.00021448,2]
[312436956,1705876232180,-155.57285885,0.00021449,2]
[312436957,1705876232190,-4846.76979825,0.00021449,2]
[312436984,1705876238296,-12401.10382069,0.00021449,2]
[312436985,1705876238309,-200.0,0.00023593,7]
[312436987,1705876238319,-167.269291,0.00024607,2]
[312436989,1705876238329,-3482.3610978,0.0002489,2]
[312436991,1705876238338,-222.066992,0.00024997,2]
[312436993,1705876238348,-7379.86363499,0.00025,2]
[312436994,1705876238358,-427.54130065,0.00025708,2]
[312436996,1705876238367,-167.269291,0.00025725,2]
[312436998,1705876238377,-280.0,0.00025952,7]
[312436999,1705876238386,-167.269291,0.00026843,2]
[312437001,1705876238396,-2279.03,0.00027387,3]
[312437003,1705876238406,-262.29973777,0.00027396,2]
[312437005,1705876238416,-2807.0,0.00027396,2]
[312437007,1705876238425,-500.0,0.00027397,2]
[312437008,1705876238435,-500.0,0.00027397,2]
[312437010,1705876238444,-500.0,0.00027397,2]
[312437012,1705876238454,-500.0,0.00027397,2]
[312437014,1705876238464,-500.0,0.00027397,2]
[312437015,1705876238473,-500.0,0.00027397,2]
[312437017,1705876238483,-500.0,0.00027397,2]
[312437019,1705876238493,-500.0,0.00027397,2]
[312437021,1705876238502,-500.0,0.00027397,2]
[312437023,1705876238512,-500.0,0.00027397,2]
[312437024,1705876238521,-500.0,0.00027397,2]
[312437026,1705876238531,-596.3317369,0.00027397,2]
[312437028,1705876238540,-500.0,0.00027397,2]
[312437030,1705876238549,-500.0,0.00027397,2]
[312437031,1705876238559,-500.0,0.00027397,2]
[312437033,1705876238568,-500.0,0.00027397,2]
[312437034,1705876238578,-346.71546179,0.00027397,2]
[312437035,1705876238587,-543.6,0.00027397,2]
[312437037,1705876238597,-500.0,0.00027397,2]
[312437038,1705876238606,-645.0704985,0.00027397,2]
[312437039,1705876238616,-500.0,0.00027397,2]
[312437040,1705876238625,-500.0,0.00027397,2]
[312437041,1705876238634,-500.0,0.00027397,2]
[312437042,1705876238643,-500.0,0.00027397,2]
[312437043,1705876238653,-500.0,0.00027397,2]
[312437044,1705876238663,-500.0,0.00027397,2]
[312437045,1705876238673,-500.0,0.00027397,2]
[312437047,1705876238682,-500.0,0.00027397,2]
[312437048,1705876238691,-500.0,0.00027397,2]
[312437049,1705876238701,-500.0,0.00027397,2]
[312437050,1705876238711,-500.0,0.00027397,2]
[312437051,1705876238720,-500.0,0.00027397,2]
[312437052,1705876238729,-500.0,0.00027397,2]
[312437053,1705876238739,-500.0,0.00027397,2]
[312437054,1705876238748,-500.0,0.00027397,2]
[312437055,1705876238757,-774.09,0.00027397,2]
[312437056,1705876238767,-579.56324903,0.00027397,2]
[312437057,1705876238777,-500.0,0.00027397,2]
[312437058,1705876238787,-500.0,0.00027397,2]
[312437059,1705876238797,-500.0,0.00027397,2]
[312437060,1705876238806,-500.0,0.00027397,2]
[312437061,1705876238816,-500.0,0.00027397,2]
[312437062,1705876238825,-251.91583428,0.00027397,2]
[312437063,1705876238835,-500.0,0.00027397,2]
[312437064,1705876238845,-500.0,0.00027397,2]
[312437065,1705876238854,-500.0,0.00027397,2]
[312437066,1705876238863,-500.0,0.00027397,2]
[312437067,1705876238873,-500.0,0.00027397,2]
[312437068,1705876238882,-1850.54,0.00027397,2]
[312437069,1705876238891,-500.0,0.00027397,2]
[312437070,1705876238900,-500.0,0.00027397,2]
[312437071,1705876238914,-500.0,0.00027397,2]
[312437072,1705876238924,-500.0,0.00027397,2]
[312437073,1705876238933,-500.0,0.00027397,2]
[312437074,1705876238943,-500.0,0.00027397,2]
[312437075,1705876238953,-500.0,0.00027397,2]
[312437076,1705876238963,-500.0,0.00027397,2]
[312437077,1705876238973,-500.0,0.00027397,2]
[312437078,1705876238982,-661.75,0.00027397,2]
[312437079,1705876238993,-500.0,0.00027397,2]
[312437080,1705876239003,-500.0,0.00027397,2]
[312437081,1705876239012,-500.0,0.00027397,2]
[312437082,1705876239022,-500.0,0.00027397,2]
[312437083,1705876239031,-500.0,0.00027397,2]
[312437084,1705876239041,-500.0,0.00027397,2]
[312437085,1705876239050,-500.0,0.00027397,2]
[312437086,1705876239060,-500.0,0.00027397,2]
[312437087,1705876239069,-502.39253429,0.00027397,2]
[312437088,1705876239080,-500.0,0.00027397,2]
[312437089,1705876239089,-500.0,0.00027397,2]
[312437090,1705876239099,-503.89430269,0.00027397,2]
[312437091,1705876239108,-635.96694651,0.00027397,2]
[312437092,1705876239118,-500.0,0.00027397,2]
[312437093,1705876239128,-500.0,0.00027397,2]
[312437094,1705876239138,-500.0,0.00027397,2]
[312437095,1705876239147,-500.0,0.00027397,2]
[312437096,1705876239157,-500.90581918,0.00027397,2]
[312437097,1705876239167,-459.32992208,0.00027397,2]
[312437098,1705876239176,-582.91849206,0.00027397,2]
[312437099,1705876239186,-500.0,0.00027397,2]
[312437100,1705876239195,-500.0,0.00027397,2]
[312437101,1705876239205,-1000.0,0.00027397,2]
[312437102,1705876239215,-491.6713337,0.00027397,2]
[312437103,1705876239225,-1001.18344881,0.00027397,5]
[312437104,1705876239234,-500.0,0.00027397,2]
[312437105,1705876239244,-500.0,0.00027397,2]
[312437106,1705876239253,-500.0,0.00027397,2]
[312437107,1705876239263,-500.0,0.00027397,2]
[312437108,1705876239273,-500.0,0.00027397,2]
[312437109,1705876239283,-500.0,0.00027397,2]
[312437110,1705876239293,-500.0,0.00027397,2]
[312437111,1705876239302,-500.0,0.00027397,2]
[312437112,1705876239312,-500.0,0.00027397,2]
[312437113,1705876239321,-500.0,0.00027397,2]
[312437114,1705876239331,-1418.15,0.00027397,2]
[312437115,1705876239341,-500.0,0.00027397,2]
[312437116,1705876239352,-500.0,0.00027397,2]
[312437117,1705876239362,-500.0,0.00027397,2]
[312437118,1705876239372,-500.0,0.00027397,2]
[312437119,1705876239381,-500.0,0.00027397,2]
[312437120,1705876239390,-500.0,0.00027397,2]
[312437121,1705876239399,-500.0,0.00027397,2]
[312437122,1705876239408,-500.0,0.00027397,2]
[312437123,1705876239417,-500.0,0.00027397,2]
[312437124,1705876239427,-500.0,0.00027397,2]
[312437125,1705876239436,-430.98156131,0.00027397,2]
[312437126,1705876239446,-500.0,0.00027397,2]
[312437127,1705876239455,-500.0,0.00027397,2]
[312437128,1705876239465,-500.0,0.00027397,2]
[312437129,1705876239474,-586.54466235,0.00027397,2]
[312437130,1705876239483,-544.43,0.00027397,2]
[312437131,1705876239492,-1000.0,0.00027397,2]
[312437132,1705876239502,-1159.53,0.00027397,2]
[312437133,1705876239511,-500.0,0.00027397,2]
[312437134,1705876239522,-500.0,0.00027397,2]
[312437135,1705876239531,-500.0,0.00027397,2]
[312437136,1705876239541,-500.0,0.00027397,2]
[312437137,1705876239551,-500.0,0.00027397,2]
[312437138,1705876239560,-500.0,0.00027397,2]
[312437139,1705876239569,-500.0,0.00027397,2]
[312437140,1705876239579,-500.0,0.00027397,2]
[312437141,1705876239588,-708.28,0.00027397,2]
[312437142,1705876239598,-500.0,0.00027397,2]
[312437143,1705876239607,-768.72,0.00027397,2]
[312437144,1705876239617,-500.0,0.00027397,2]
[312437145,1705876239626,-472.61612095,0.00027397,2]
[312437146,1705876239636,-500.0,0.00027397,2]
[312437147,1705876239646,-500.0,0.00027397,2]
[312437148,1705876239657,-511.59,0.00027397,2]
[312437149,1705876239667,-500.0,0.00027397,2]
[312437150,1705876239678,-858.9,0.00027397,2]
[312437151,1705876239686,-500.0,0.00027397,2]
[312437152,1705876239696,-547.42,0.00027397,2]
[312437153,1705876239705,-500.0,0.00027397,2]
[312437154,1705876239715,-500.0,0.00027397,2]
[312437155,1705876239724,-500.0,0.00027397,2]
[312437156,1705876239734,-1572.62,0.00027397,2]
[312437157,1705876239744,-156.32295758,0.00027397,2]
[312437158,1705876239753,-500.0,0.00027397,2]
[312437159,1705876239763,-500.0,0.00027397,2]
[312437160,1705876239772,-500.0,0.00027397,2]
[312437161,1705876239781,-631.88,0.00027397,2]
[312437162,1705876239791,-500.0,0.00027397,2]
[312437163,1705876239800,-1283.39,0.00027397,2]
[312437164,1705876239809,-150.10003198,0.00027397,2]
[312437165,1705876239819,-500.0,0.00027397,2]
[312437166,1705876239828,-500.0,0.00027397,2]
[312437167,1705876239837,-522.84,0.00027397,2]
[312437168,1705876239846,-500.0,0.00027397,2]
[312437169,1705876239856,-500.0,0.00027397,2]
[312437170,1705876239866,-425.81095081,0.00027397,2]
[312437171,1705876239875,-500.0,0.00027397,2]
[312437172,1705876239885,-500.0,0.00027397,2]
[312437173,1705876239894,-3566.95,0.00027397,2]
[312437174,1705876239904,-15083.3,0.00027397,2]
[312437175,1705876239919,-677.31,0.00027397,2]
[312437176,1705876239929,-500.0,0.00027397,2]
[312437177,1705876239940,-500.0,0.00027397,2]
[312437178,1705876239951,-10271.59,0.00027397,2]
[312437179,1705876239960,-500.0,0.00027397,2]
[312437180,1705876239970,-500.0,0.00027397,2]
[312437181,1705876239980,-500.0,0.00027397,2]
[312437182,1705876239991,-990.88,0.00027397,2]
[312437183,1705876240000,-500.0,0.00027397,2]
[312437184,1705876240009,-437.94230908,0.00027397,2]
[312437185,1705876240018,-1392.84,0.00027397,2]
[312437186,1705876240028,-500.0,0.00027397,2]
[312437187,1705876240037,-790.5,0.00027397,2]
[312437188,1705876240047,-500.0,0.00027397,2]
[312437189,1705876240056,-747.94,0.00027397,2]
[312437190,1705876240065,-716.3,0.00027397,2]
[312437191,1705876240075,-500.0,0.00027397,2]
[312437192,1705876240084,-500.0,0.00027397,2]
[312437193,1705876240093,-500.0,0.00027397,2]
[312437194,1705876240102,-500.0,0.00027397,2]
[312437195,1705876240112,-500.0,0.00027397,2]
[312437196,1705876240121,-962.6,0.00027397,2]
[312437197,1705876240131,-155.0,0.00027397,2]
[312437198,1705876240140,-700.45,0.00027397,2]
[312437199,1705876240149,-5940.14,0.00027397,2]
[312437200,1705876240159,-502.39572461,0.00027397,2]
[312437201,1705876240168,-767.81,0.00027397,2]
[312437202,1705876240177,-500.0,0.00027397,2]
[312437203,1705876240186,-368.94436176,0.00027397,2]
[312437204,1705876240196,-237.04279308,0.00027397,2]
[312437206,1705876240206,-500.0,0.00027397,2]
[312437207,1705876240215,-6772.85,0.00027397,2]
[312437209,1705876240225,-561.16798404,0.00027397,2]
[312437222,1705876240365,-500.0,0.00027397,2]
[312437224,1705876240375,-865.45,0.00027397,2]
[312437226,1705876240384,-1323.56,0.00027397,2]
[312437228,1705876240393,-558.29816808,0.00027397,2]
[312437231,1705876240412,-1908.97,0.00027397,2]
[312437233,1705876240423,-500.0,0.00027397,2]
[312437235,1705876240433,-500.0,0.00027397,2]
[312437237,1705876240443,-500.0,0.00027397,2]
[312437239,1705876240453,-500.0,0.00027397,2]
[312437241,1705876240464,-500.0,0.00027397,2]
[312437243,1705876240475,-500.0,0.00027397,2]
[312437245,1705876240486,-500.0,0.00027397,2]
[312437247,1705876240498,-500.0,0.00027397,2]
[312437250,1705876240509,-470.11053392,0.00027397,2]
[312437251,1705876240521,-2186.16,0.00027397,2]
[312437252,1705876240530,-4090.78,0.00027397,2]
[312437253,1705876240539,-500.0,0.00027397,2]
[312437254,1705876240549,-1035.93563138,0.00027397,2]
[312437255,1705876240559,-500.0,0.00027397,2]
[312437256,1705876240568,-151.44619477,0.00027397,2]
[312437257,1705876240578,-500.0,0.00027397,2]
[312437258,1705876240587,-1512.5,0.00027397,2]
[312437259,1705876240597,-500.0,0.00027397,2]
[312437260,1705876240607,-5257.8,0.00027397,2]
[312437261,1705876240617,-500.0,0.00027397,2]
[312437262,1705876240626,-500.0,0.00027397,2]
[312437263,1705876240637,-500.0,0.00027397,2]
[312437264,1705876240646,-500.0,0.00027397,2]
[312437265,1705876240655,-500.0,0.00027397,2]
[312437266,1705876240666,-1119.28,0.00027397,2]
[312437267,1705876240677,-340.35921099,0.00027397,2]
[312437268,1705876240686,-500.0,0.00027397,2]
[312437269,1705876240696,-500.0,0.00027671,2]
[312437270,1705876240705,-219.39829432,0.00027671,2]
[312437271,1705876240715,-500.0,0.00027671,2]
[312437272,1705876240726,-500.0,0.00027671,2]
[312437273,1705876240736,-500.0,0.00027671,2]
[312437274,1705876240746,-500.0,0.00027671,2]
[312437275,1705876240757,-536.42536523,0.00027671,2]
[312437276,1705876240767,-500.0,0.00027671,2]
[312437277,1705876240778,-500.0,0.00027671,2]
[312437278,1705876240787,-543.6,0.00027671,2]
[312437279,1705876240797,-500.0,0.00027671,2]
[312437280,1705876240806,-525.10428481,0.00027671,2]
[312437281,1705876240816,-500.0,0.00027671,2]
[312437283,1705876240826,-500.0,0.00027671,2]
[312437284,1705876240835,-500.0,0.00027671,2]
[312437285,1705876240845,-500.0,0.00027671,2]
[312437287,1705876240854,-500.0,0.00027671,2]
[312437288,1705876240863,-500.0,0.00027671,2]
[312437290,1705876240873,-607.21258544,0.00027671,2]
[312437292,1705876240882,-774.09,0.00027671,2]
[312437293,1705876240891,-500.0,0.00027671,2]
[312437294,1705876240904,-500.0,0.00027671,2]
[312437295,1705876240914,-500.0,0.00027671,2]
[312437296,1705876240924,-500.0,0.00027671,2]
[312437297,1705876240934,-500.0,0.00027671,2]
[312437298,1705876240944,-500.0,0.00027671,2]
[312437299,1705876240956,-1850.54,0.00027671,2]
[312437300,1705876240965,-500.0,0.00027671,2]
[312437301,1705876240974,-158.7612329,0.00027671,2]
[312437302,1705876240986,-500.0,0.00027671,2]
[312437303,1705876240995,-500.0,0.00027671,2]
[312437304,1705876241005,-500.0,0.00027671,2]
[312437305,1705876241014,-500.0,0.00027671,2]
[312437306,1705876241024,-500.0,0.00027671,2]
[312437307,1705876241033,-500.0,0.00027671,2]
[312437308,1705876241042,-500.0,0.00027671,2]
[312437309,1705876241052,-661.75,0.00027671,2]
[312437310,1705876241062,-500.0,0.00027671,2]
[312437311,1705876241071,-500.0,0.00027671,2]
[312437312,1705876241081,-500.0,0.00027671,2]
[312437313,1705876241090,-500.0,0.00027671,2]
[312437314,1705876241100,-500.0,0.00027671,2]
[312437315,1705876241109,-500.0,0.00027671,2]
[312437317,1705876241118,-500.0,0.00027671,2]
[312437318,1705876241128,-500.0,0.00027671,2]
[312437319,1705876241137,-500.0,0.00027671,2]
[312437320,1705876241146,-500.0,0.00027671,2]
[312437321,1705876241155,-500.0,0.00027671,2]
[312437322,1705876241164,-500.0,0.00027671,2]
[312437323,1705876241173,-500.0,0.00027671,2]
[312437324,1705876241183,-1000.0,0.00027671,2]
[312437325,1705876241192,-500.0,0.00027671,2]
[312437326,1705876241202,-500.0,0.00027671,2]
[312437327,1705876241211,-500.0,0.00027671,2]
[312437328,1705876241221,-500.0,0.00027671,2]
[312437329,1705876241230,-500.0,0.00027671,2]
[312437330,1705876241239,-1418.15,0.00027671,2]
[312437331,1705876241249,-500.0,0.00027671,2]
[312437332,1705876241258,-500.0,0.00027671,2]
[312437333,1705876241268,-500.0,0.00027671,2]
[312437334,1705876241277,-500.0,0.00027671,2]